bitfinex/quotes_SOLUSD_20230701
["timestamp","ask_amount","ask_price","bid_price","bid_amount"]
[1688177898885,22.916,18.459,18.449,77.927]
[1688177900890,22.914,18.46,18.449,77.927]
[1688177904073,22.914,18.46,18.446,97.9091]
[1688177904291,5.8368624,18.459,18.446,97.9091]
[1688177904492,81.927,18.456,18.441,59.051]
[1688177904680,6.38089537,18.455,18.437,118.054]
[1688177904993,22.927,18.45,18.438,22.94]
[1688177905193,6.38089537,18.449,18.438,22.94]
[1688177905391,29.30989537,18.449,18.442,30.0]
[1688177905691,59.023,18.454,18.444,22.934]
[1688177905874,425.94280915,18.463,18.444,22.934]
[1688177905875,484.92680915,18.463,18.444,22.934]
[1688177906082,7.93673396,18.459,18.445,0.93988578]
[1688177906392,7.93673396,18.459,18.448,22.928]
[1688177906695,107.604,18.466,18.448,22.928]
[1688177906696,22.913,18.461,18.449,148.09]
[1688177906989,20.0,18.46,18.452,22.923]
[1688177907195,20.0,18.46,18.453,77.922]
[1688177907394,42.915,18.46,18.453,22.922]
[1688177907595,42.915,18.46,18.454,55.0]
[1688177911497,22.912,18.462,18.454,77.921]
[1688177914003,22.91,18.463,18.454,77.921]
[1688177914192,22.909,18.464,18.454,77.921]
[1688177918412,22.908,18.465,18.454,77.921]
[1688177918608,451.676,18.479,18.454,77.921]
[1688177918912,22.9,18.472,18.455,3.9170762]
[1688177919097,11.60160564,18.471,18.46,22.914]
[1688177919296,22.904,18.468,18.461,55.0]
[1688177919616,22.904,18.468,18.461,77.912]
[1688177920101,22.904,18.468,18.458,92.8155]
[1688177920794,22.904,18.468,18.458,115.7315]
[1688177921706,22.904,18.468,18.459,55.0]
[1688177922394,22.904,18.468,18.458,92.8155]
[1688177925499,4.17444566,18.467,18.459,55.0]
[1688177925706,22.901,18.471,18.461,22.912]
[1688177925906,20.0,18.47,18.462,55.0]
[1688177926103,20.0,18.47,18.464,22.909]
[1688177926316,20.0,18.47,18.465,55.0]
[1688177926511,20.0,18.47,18.465,77.908]
[1688177926703,20.0,18.47,18.464,22.909]
[1688177926901,22.902,18.47,18.46,22.913]
[1688177927110,22.902,18.47,18.458,92.8155]
[1688177927111,20.0,18.469,18.458,92.8155]
[1688177927406,22.907,18.466,18.458,115.7305]
[1688177927808,20.0,18.469,18.458,115.7305]
[1688177928007,42.903,18.47,18.458,115.7305]
[1688177928406,42.903,18.47,18.462,22.911]
[1688177928608,42.903,18.47,18.463,55.0]
[1688177929100,42.903,18.47,18.463,77.91]
[1688177929303,22.902,18.47,18.463,55.0]
[1688177929594,22.904,18.468,18.462,55.0]
[1688177929795,20.0,18.469,18.462,77.911]
[1688177932704,42.903,18.469,18.462,77.911]
[1688177935724,20.0,18.469,18.462,77.911]
[1688177936016,24.41106361,18.475,18.462,77.911]
[1688177936317,81.866,18.469,18.458,115.7315]
[1688177936622,4.31617624,18.468,18.458,92.8155]
[1688177936819,22.908,18.465,18.458,92.8155]
[1688177937410,58.962,18.47,18.458,115.7315]
[1688177937624,22.906,18.467,18.458,115.7315]
[1688177937808,22.906,18.467,18.46,22.914]
[1688177938000,22.904,18.469,18.463,22.91]
[1688177938200,58.953,18.473,18.464,55.0]
[1688177938201,22.903,18.47,18.464,55.0]
[1688177938402,20.0,18.469,18.464,55.0]
[1688177938704,42.903,18.469,18.464,55.0]
[1688177939002,42.903,18.469,18.463,55.0]
[1688177940906,42.903,18.469,18.459,22.915]
[1688177941110,42.903,18.469,18.46,55.0]
[1688177941310,42.903,18.469,18.459,55.0]
[1688177941699,42.903,18.469,18.459,77.915]
[1688177942923,42.903,18.469,18.459,55.0]
[1688177944922,42.903,18.469,18.459,77.914]
[1688177945920,20.0,18.469,18.459,77.914]
[1688177946231,20.0,18.474,18.46,1.25298441]
[1688177946526,22.904,18.469,18.463,22.91]
[1688177946820,22.904,18.469,18.464,55.0]
[1688177948912,22.9,18.471,18.464,22.908]
[1688177949111,58.94,18.477,18.466,22.906]
[1688177949311,22.895,18.476,18.466,22.906]
[1688177949528,58.93,18.48,18.47,22.901]
[1688177949722,20.0,18.479,18.473,22.897]
[1688177950111,20.0,18.479,18.474,55.0]
[1688177950311,22.889,18.481,18.474,77.896]
[1688177950528,22.886,18.483,18.474,77.896]
[1688177951922,22.886,18.483,18.474,173.064]
[1688177952526,22.884,18.485,18.474,173.064]
[1688177953428,22.884,18.485,18.474,150.168]
[1688177953631,3.98055874,18.484,18.474,150.168]
[1688177953838,22.887,18.482,18.474,173.064]
[1688177955132,22.887,18.482,18.474,150.168]
[1688177955442,22.887,18.482,18.474,173.064]
[1688177956216,22.885,18.484,18.474,173.064]
[1688177957234,166.381,18.488,18.474,173.064]
[1688177957235,22.883,18.485,18.474,173.064]
[1688177958732,22.882,18.487,18.474,173.064]
[1688177958935,3.98843669,18.486,18.474,173.064]
[1688177959121,22.882,18.487,18.474,183.90119922]
[1688177959521,22.882,18.487,18.474,173.064]
[1688177959729,5.15879984,18.486,18.474,22.896]
[1688177960036,22.886,18.483,18.47,58.958]
[1688177960219,5.56009661,18.482,18.472,22.899]
[1688177960419,42.888,18.481,18.472,22.899]
[1688177961030,42.888,18.481,18.473,55.0]
[1688177961224,42.888,18.481,18.473,77.898]
[1688177961423,42.888,18.481,18.473,55.0]
[1688177961834,42.888,18.481,18.47,22.901]
[1688177962046,4.08283031,18.48,18.469,94.2444]
[1688177962333,22.893,18.477,18.469,94.2444]
[1688177963237,22.893,18.477,18.469,117.1464]
[1688177963441,22.891,18.479,18.469,117.1464]
[1688177964628,22.891,18.479,18.47,55.0]
[1688177964823,22.891,18.479,18.471,22.899]
[1688177965033,22.891,18.479,18.472,55.0]
[1688177965730,22.889,18.481,18.472,77.899]
[1688177966035,107.483,18.487,18.472,77.899]
[1688177966226,22.885,18.483,18.472,88.73619922]
[1688177968243,22.883,18.486,18.472,88.73619922]
[1688177968423,5.10795805,18.485,18.472,88.73619922]
[1688177969036,22.883,18.486,18.472,88.73619922]
[1688177969949,22.88,18.488,18.472,88.73619922]
[1688177970131,29.62510002,18.487,18.472,88.73619922]
[1688177971727,29.62510002,18.487,18.472,33.73619922]
[1688177971932,29.62510002,18.487,18.472,22.899]
[1688177973045,29.62510002,18.487,18.473,55.0]
[1688177973344,29.62510002,18.487,18.477,22.893]
[1688177974644,22.881,18.487,18.48,22.889]
[1688177976649,22.881,18.487,18.479,22.89]
[1688177978351,22.881,18.487,18.48,55.0]
[1688177979160,22.881,18.487,18.48,77.889]
[1688177979744,22.881,18.487,18.472,166.518]
[1688177979944,6.40708777,18.486,18.473,55.0]
[1688177980233,22.886,18.483,18.476,22.893]
[1688177981457,20.0,18.482,18.469,58.961]
[1688177981745,22.891,18.479,18.47,91.2478]
[1688177981952,22.891,18.479,18.471,22.899]
[1688177982951,22.891,18.479,18.472,55.0]
[1688177984456,22.891,18.479,18.47,91.2478]
[1688177984645,22.891,18.479,18.471,55.0]
[1688177986369,3.0,18.472,18.445,92.1864]
[1688177986649,189.503,18.464,18.446,30.0]
[1688177986856,145.90204148,18.463,18.445,97.34364909]
[1688177987060,81.917,18.458,18.443,5.15724909]
[1688177987240,12.80432383,18.457,18.443,27.79294513]
[1688177987559,22.923,18.453,18.44,34.9]
[1688177987738,12.80432383,18.452,18.441,26.69978128]
[1688177987938,22.928,18.449,18.44,22.939]
[1688177988553,22.928,18.449,18.441,55.0]
[1688177988852,22.928,18.449,18.441,77.937]
[1688177989852,59.004,18.457,18.441,77.937]
[1688177990057,6.6801224,18.456,18.442,0.87631497]
[1688177990257,22.923,18.453,18.446,22.931]
[1688177990456,22.923,18.453,18.447,150.766]
[1688177992260,22.923,18.453,18.435,27.7558778]
[1688177992451,30.51261208,18.452,18.437,95.766]
[1688177992650,81.961,18.448,18.437,95.766]
[1688177993145,10.51261208,18.447,18.437,95.766]
[1688177993444,22.934,18.444,18.437,95.766]
[1688177993649,22.934,18.444,18.437,118.708]
[1688177994442,22.93,18.447,18.437,118.708]
[1688177994745,22.926,18.45,18.437,118.708]
[1688177994946,22.931,18.447,18.437,118.708]
[1688177995645,22.931,18.447,18.438,55.0]
[1688177995846,22.931,18.447,18.44,22.938]
[1688177996155,22.931,18.447,18.441,55.0]
[1688177996346,22.931,18.447,18.441,77.937]
[1688177998359,22.931,18.447,18.441,55.0]
[1688178003565,22.931,18.447,18.441,77.937]
[1688178003760,22.931,18.447,18.441,55.0]
[1688178007562,59.022,18.451,18.441,77.937]
[1688178007764,22.929,18.448,18.441,55.0]
[1688178008566,22.929,18.448,18.439,22.939]
[1688178009864,22.929,18.448,18.44,55.0]
[1688178011069,22.929,18.448,18.44,77.939]
[1688178013063,22.927,18.45,18.44,123.35619922]
[1688178013269,59.01,18.455,18.44,123.35619922]
[1688178013270,22.925,18.451,18.44,123.35619922]
[1688178014365,22.924,18.452,18.44,112.519]
[1688178014563,22.923,18.453,18.441,10.83719922]
[1688178014758,22.923,18.453,18.444,22.933]
[1688178015169,22.923,18.453,18.445,55.0]
[1688178015361,59.0,18.458,18.446,22.931]
[1688178015564,22.921,18.455,18.447,55.0]
[1688178016666,22.921,18.455,18.446,77.931]
[1688178018760,22.921,18.455,18.446,22.931]
[1688178019076,22.925,18.451,18.442,22.936]
[1688178019270,22.928,18.449,18.442,22.936]
[1688178020971,22.928,18.449,18.44,22.938]
[1688178021376,22.928,18.449,18.441,77.937]
[1688178028078,22.928,18.449,18.437,93.6739]
[1688178028378,22.933,18.445,18.437,93.6739]
[1688178028564,22.933,18.445,18.433,22.946]
[1688178029169,10.22256834,18.444,18.433,22.946]
[1688178029367,22.937,18.442,18.433,22.946]
[1688178030370,22.937,18.442,18.434,55.0]
[1688178030569,22.937,18.442,18.435,22.944]
[1688178030778,22.937,18.442,18.436,55.0]
[1688178030969,22.937,18.442,18.436,77.943]
[1688178031381,59.035,18.447,18.436,77.943]
[1688178031382,22.935,18.444,18.436,77.943]
[1688178034174,22.935,18.444,18.426,107.833]
[1688178034371,30.57369698,18.443,18.427,82.05]
[1688178034673,22.941,18.439,18.427,22.955]
[1688178034878,10.57369698,18.438,18.427,22.955]
[1688178035073,22.945,18.435,18.427,22.955]
[1688178035468,22.945,18.435,18.425,22.957]
[1688178037990,22.945,18.435,18.426,55.0]
[1688178038184,22.945,18.435,18.426,77.956]
[1688178038688,20.0,18.443,18.426,88.79319922]
[1688178038897,31.03564127,18.442,18.427,12.30672717]
[1688178039089,20.0,18.441,18.431,82.032]
[1688178039286,20.0,18.441,18.432,55.0]
[1688178039585,20.0,18.441,18.434,22.945]
[1688178039788,20.0,18.441,18.435,55.0]
[1688178039986,42.938,18.441,18.435,77.944]
[1688178040179,42.938,18.441,18.433,22.946]
[1688178040383,42.938,18.441,18.434,55.0]
[1688178040874,42.938,18.441,18.433,22.946]
[1688178041182,42.938,18.441,18.434,55.0]
[1688178042181,42.938,18.441,18.427,22.955]
[1688178042376,42.938,18.441,18.42,54.92]
[1688178042377,43.14259905,18.44,18.42,54.92]
[1688178042575,22.945,18.435,18.426,22.956]
[1688178043492,22.945,18.435,18.427,55.0]
[1688178043677,22.945,18.435,18.428,22.954]
[1688178043879,22.945,18.435,18.429,55.0]
[1688178045692,22.945,18.435,18.428,55.0]
[1688178046782,22.945,18.435,18.428,77.954]
[1688178046973,22.943,18.437,18.428,77.954]
[1688178047173,6.45495707,18.44,18.428,77.954]
[1688178047376,20.0,18.439,18.428,77.954]
[1688178047977,5.05165565,18.439,18.428,77.954]
[1688178048487,27.99265565,18.439,18.428,77.954]
[1688178048692,22.941,18.439,18.428,77.954]
[1688178051391,82.0,18.439,18.423,99.4245]
[1688178051695,7.57862906,18.438,18.423,99.4245]
[1688178051880,22.947,18.434,18.424,22.959]
[1688178052278,22.947,18.434,18.423,122.3845]
[1688178052588,22.947,18.434,18.423,99.4245]
[1688178052794,22.947,18.434,18.424,55.0]
[1688178054690,22.947,18.434,18.424,77.959]
[1688178056392,22.947,18.434,18.424,22.959]
[1688178057674,22.947,18.434,18.426,22.955]
[1688178057877,22.947,18.434,18.427,55.0]
[1688178058080,22.947,18.434,18.426,22.955]
[1688178058293,22.947,18.434,18.424,22.957]
[1688178058501,22.947,18.434,18.425,55.0]
[1688178059287,22.947,18.434,18.425,77.957]
[1688178063097,22.947,18.434,18.425,22.957]
[1688178063309,22.947,18.434,18.419,59.121]
[1688178063602,22.952,18.43,18.421,22.961]
[1688178063899,20.0,18.429,18.421,22.961]
[1688178064202,22.954,18.428,18.414,10.83719922]
[1688178064398,7.92233473,18.427,18.415,22.969]
[1688178064602,22.958,18.425,18.415,22.969]
[1688178065486,22.958,18.425,18.416,55.0]
[1688178065688,22.958,18.425,18.418,22.965]
[1688178066002,22.958,18.425,18.419,55.0]
[1688178066389,22.958,18.425,18.419,77.964]
[1688178066790,22.958,18.425,18.414,59.138]
[1688178067005,22.958,18.425,18.416,22.968]
[1688178067206,22.958,18.425,18.415,22.969]
[1688178070303,118.49205643,18.424,18.407,22.979]
[1688178070512,22.965,18.419,18.407,22.979]
[1688178071010,22.965,18.419,18.404,107.959]
[1688178071011,92.7252382,18.419,18.404,22.983]
[1688178071600,82.088,18.419,18.404,22.983]
[1688178072511,82.088,18.419,18.406,22.981]
[1688178072815,82.088,18.419,18.407,55.0]
[1688178074300,82.088,18.419,18.407,77.979]
[1688178075511,82.088,18.419,18.403,92.0789]
[1688178075820,65.6372382,18.418,18.403,92.0789]
[1688178076003,190.022,18.414,18.403,92.0789]
[1688178076203,190.022,18.414,18.399,22.989]
[1688178076911,109.12929463,18.418,18.4,55.0]
[1688178077119,190.022,18.414,18.4,77.988]
[1688178077613,190.022,18.414,18.4,22.988]
[1688178077816,22.977,18.41,18.401,55.0]
[1688178078717,22.977,18.41,18.4,55.0]
[1688178080308,22.977,18.41,18.401,22.987]
[1688178080505,55.0,18.418,18.402,55.0]
[1688178080714,22.977,18.41,18.402,55.0]
[1688178081621,22.977,18.41,18.401,55.0]
[1688178082224,22.977,18.41,18.401,77.987]
[1688178082719,22.977,18.41,18.401,55.0]
[1688178082909,22.977,18.41,18.398,94.2732]
[1688178083109,22.977,18.41,18.399,55.0]
[1688178083421,68.6242382,18.41,18.398,94.2732]
[1688178084332,68.6242382,18.41,18.397,22.991]
[1688178085406,57.987,18.41,18.397,22.991]
[1688178086214,57.987,18.41,18.393,94.4285]
[1688178086408,57.987,18.41,18.394,77.995]
[1688178086608,68.6242382,18.41,18.394,77.995]
[1688178088623,57.987,18.41,18.394,77.995]
[1688178089521,22.977,18.41,18.394,88.83219922]
[1688178089823,100.17350088,18.415,18.399,22.989]
[1688178090028,100.17350088,18.415,18.4,89.92]
[1688178090029,59.137,18.415,18.4,89.92]
[1688178090209,59.128,18.418,18.404,22.983]
[1688178090411,59.128,18.418,18.405,55.0]
[1688178090722,22.973,18.413,18.405,55.0]
[1688178091025,22.973,18.413,18.405,77.982]
[1688178093203,142.885,18.42,18.405,77.982]
[1688178093204,35.01,18.42,18.405,77.982]
[1688178093404,216.71,18.439,18.405,77.982]
[1688178093405,22.962,18.422,18.405,77.982]
[1688178093623,22.956,18.426,18.41,35.01]
[1688178093827,59.087,18.431,18.414,190.012]
[1688178094023,58.0839,18.439,18.415,55.0]
[1688178094024,22.955,18.427,18.415,55.0]
[1688178094222,22.955,18.427,18.416,22.968]
[1688178094526,22.955,18.427,18.417,55.0]
[1688178094726,22.955,18.427,18.417,77.967]
[1688178094913,22.955,18.427,18.417,22.967]
[1688178095531,22.955,18.427,18.418,55.0]
[1688178095725,22.955,18.427,18.42,22.963]
[1688178096214,22.955,18.427,18.418,55.0]
[1688178096421,22.955,18.427,18.419,22.965]
[1688178096624,22.953,18.429,18.42,55.0]
[1688178096828,22.953,18.429,18.422,22.961]
[1688178097128,22.953,18.429,18.42,22.963]
[1688178099834,22.953,18.429,18.421,55.0]
[1688178100137,22.953,18.429,18.421,77.962]
[1688178100342,22.953,18.429,18.421,22.962]
[1688178101127,22.953,18.429,18.422,55.0]
[1688178102134,22.953,18.429,18.42,22.964]
[1688178102338,22.953,18.429,18.421,55.0]
[1688178104835,22.953,18.429,18.421,77.962]
[1688178105644,10.6372382,18.437,18.421,77.962]
[1688178105645,59.089,18.436,18.421,77.962]
[1688178105932,22.946,18.435,18.422,90.8148]
[1688178106142,22.946,18.435,18.425,22.956]
[1688178106521,22.946,18.435,18.426,55.0]
[1688178106723,22.946,18.435,18.428,22.953]
[1688178106923,22.946,18.435,18.429,55.0]
[1688178107323,22.946,18.435,18.429,77.952]
[1688178107523,82.018,18.435,18.422,90.8148]
[1688178107732,82.018,18.435,18.423,55.0]
[1688178107934,82.018,18.435,18.424,22.959]
[1688178108335,82.018,18.435,18.425,55.0]
[1688178108624,82.018,18.435,18.425,77.956]
[1688178109932,22.946,18.435,18.425,77.956]
[1688178112025,22.946,18.435,18.425,22.956]
[1688178112341,20.0,18.434,18.422,22.961]
[1688178112544,22.951,18.431,18.422,22.961]
[1688178112841,20.0,18.43,18.422,22.961]
[1688178113039,42.952,18.43,18.422,22.961]
[1688178113539,42.952,18.43,18.421,22.962]
[1688178114438,42.952,18.43,18.422,55.0]
[1688178114639,20.0,18.43,18.424,22.958]
[1688178114847,59.083,18.437,18.425,55.0]
[1688178115140,22.948,18.433,18.426,22.956]
[1688178115442,22.948,18.433,18.427,55.0]
[1688178116039,55.0,18.441,18.427,77.955]
[1688178116239,4.33836936,18.44,18.427,77.955]
[1688178116543,22.939,18.44,18.428,93.406]
[1688178116755,59.035,18.447,18.431,22.949]
[1688178116929,136.99,18.447,18.431,22.949]
[1688178117131,22.934,18.444,18.432,55.0]
[1688178117422,22.934,18.444,18.435,22.944]
[1688178117742,22.934,18.444,18.436,77.943]
[1688178118647,22.934,18.444,18.436,55.0]
[1688178119349,22.934,18.444,18.435,77.945]
[1688178119645,59.028,18.449,18.436,22.944]
[1688178119836,59.028,18.449,18.437,55.0]
[1688178120036,22.933,18.445,18.437,55.0]
[1688178123444,22.926,18.45,18.437,77.942]
[1688178123655,22.929,18.448,18.437,77.942]
[1688178123861,22.929,18.448,18.438,99.9138]
[1688178124035,22.929,18.448,18.439,77.939]
[1688178125647,22.929,18.448,18.442,22.936]
[1688178125845,22.929,18.448,18.443,55.0]
[1688178126050,22.927,18.45,18.443,77.935]
[1688178126248,22.925,18.451,18.443,77.935]
[1688178126834,22.925,18.451,18.443,55.0]
[1688178127037,22.925,18.451,18.443,77.935]
[1688178127238,22.925,18.451,18.44,35.12]
[1688178127438,22.925,18.451,18.438,99.9138]
[1688178127649,22.925,18.451,18.439,20.0]
[1688178128234,22.925,18.451,18.441,22.937]
[1688178129043,22.925,18.451,18.444,22.934]
[1688178129251,22.925,18.451,18.445,55.0]
[1688178130441,22.919,18.456,18.445,136.972]
[1688178130646,22.917,18.458,18.445,136.972]
[1688178130945,22.917,18.458,18.446,99.8011]
[1688178131145,22.917,18.458,18.449,22.927]
[1688178131542,22.917,18.458,18.45,55.0]
[1688178131746,22.917,18.458,18.451,22.924]
[1688178131945,22.917,18.458,18.452,55.0]
[1688178134637,22.917,18.458,18.452,77.924]
[1688178135040,22.914,18.461,18.452,77.924]
[1688178135849,22.914,18.461,18.446,207.5191]
[1688178135850,20.0,18.46,18.451,22.925]
[1688178136052,22.917,18.458,18.451,22.925]
[1688178136465,22.917,18.458,18.449,22.926]
[1688178137460,22.917,18.458,18.45,77.926]
[1688178138554,22.917,18.458,18.446,99.8011]
[1688178139939,22.417,18.458,18.446,99.8011]
[1688178140449,22.417,18.458,18.447,55.0]
[1688178142244,22.417,18.458,18.442,26.91532669]
[1688178142245,22.417,18.458,18.442,22.936]
[1688178142451,6.36197195,18.457,18.442,22.936]
[1688178142756,81.937,18.453,18.442,22.936]
[1688178143665,81.937,18.453,18.443,55.0]
[1688178143867,81.937,18.453,18.443,77.934]
[1688178144068,22.923,18.453,18.443,77.934]
[1688178148365,107.647,18.459,18.443,77.934]
[1688178148552,5.22504671,18.458,18.443,77.934]
[1688178149183,5.22504671,18.458,18.443,22.934]
[1688178149358,22.923,18.453,18.435,59.071]
[1688178149670,6.6805949,18.452,18.436,91.5684]
[1688178149870,22.93,18.448,18.438,22.941]
[1688178150056,28.3331397,18.459,18.438,22.941]
[1688178150257,5.07786894,18.45,18.44,35.12]
[1688178150561,5.07786894,18.45,18.441,22.937]
[1688178150562,22.927,18.45,18.441,22.937]
[1688178151165,59.004,18.457,18.442,55.0]
[1688178151483,59.004,18.457,18.446,22.931]
[1688178151484,22.922,18.454,18.446,22.931]
[1688178151668,22.922,18.454,18.447,55.0]
[1688178151962,22.919,18.457,18.448,22.928]
[1688178152166,22.919,18.457,18.45,22.926]
[1688178152568,22.919,18.457,18.451,77.925]
[1688178153162,22.916,18.459,18.451,77.925]
[1688178153358,22.914,18.461,18.451,77.925]
[1688178153573,22.909,18.465,18.451,88.76219922]
[1688178153758,107.577,18.471,18.452,10.83719922]
[1688178153953,166.536,18.471,18.456,22.918]
[1688178154172,22.906,18.467,18.459,22.914]
[1688178154571,22.906,18.467,18.46,55.0]
[1688178156859,22.906,18.467,18.46,77.914]
[1688178157266,22.904,18.468,18.46,77.914]
[1688178158273,22.904,18.468,18.46,55.0]
[1688178158779,22.904,18.468,18.459,55.0]
[1688178158989,22.904,18.468,18.459,77.915]
[1688178160671,22.904,18.468,18.459,55.0]
[1688178163978,22.904,18.468,18.454,22.921]
[1688178164181,3.89626036,18.467,18.453,22.923]
[1688178164382,22.91,18.463,18.453,22.923]
[1688178166981,22.91,18.463,18.454,55.0]
[1688178167283,22.91,18.463,18.454,77.921]
[1688178167872,20.0,18.462,18.448,10.83719922]
[1688178168173,189.566,18.458,18.442,95.8507]
[1688178168378,189.566,18.458,18.443,30.0]
[1688178168677,8.23745767,18.457,18.442,95.8507]
[1688178168882,22.925,18.451,18.441,22.937]
[1688178169964,22.925,18.451,18.442,77.936]
[1688178170184,22.925,18.451,18.437,95.8507]
[1688178170382,22.931,18.447,18.438,22.94]
[1688178172982,22.931,18.447,18.439,55.0]
[1688178173184,22.931,18.447,18.439,77.94]
[1688178173800,22.931,18.447,18.437,118.7917]
[1688178175486,22.931,18.447,18.438,77.941]
[1688178179084,22.931,18.447,18.438,55.0]
[1688178179888,22.931,18.447,18.437,95.8507]
[1688178180772,22.931,18.447,18.428,59.092]
[1688178180979,4.57421106,18.446,18.431,116.8524]
[1688178181171,81.987,18.442,18.431,116.8524]
[1688178181579,22.937,18.442,18.431,116.8524]
[1688178182088,22.937,18.442,18.434,22.946]
[1688178182293,22.937,18.442,18.435,55.0]
[1688178186697,22.937,18.442,18.435,77.944]
[1688178187695,59.027,18.449,18.435,77.944]
[1688178187898,4.27226183,18.448,18.435,77.944]
[1688178188198,4.90317586,18.45,18.435,77.944]
[1688178188695,22.93,18.447,18.435,77.944]
[1688178195294,22.93,18.447,18.431,93.9034]
[1688178195503,5.240829,18.446,18.431,93.9034]
[1688178195802,81.988,18.442,18.431,93.9034]
[1688178196385,81.988,18.442,18.431,116.8534]
[1688178196899,81.988,18.442,18.432,55.0]
[1688178199703,81.988,18.442,18.426,97.51016167]
[1688178199896,25.20328392,18.441,18.429,22.951]
[1688178200097,22.942,18.438,18.429,22.951]
[1688178202109,22.942,18.438,18.43,55.0]
[1688178205408,22.942,18.438,18.427,116.2583]
[1688178206707,22.942,18.438,18.428,55.0]
[1688178206909,22.942,18.438,18.43,22.95]
[1688178207091,22.942,18.438,18.431,55.0]
[1688178208310,20.0,18.441,18.431,55.0]
[1688178208610,22.942,18.438,18.431,55.0]
[1688178209397,22.942,18.438,18.43,55.0]
[1688178209815,22.942,18.438,18.43,77.951]
[1688178212015,127.751,18.441,18.43,77.951]
[1688178212016,20.0,18.441,18.43,55.0]
[1688178212216,22.942,18.438,18.43,77.951]
[1688178214619,22.942,18.438,18.43,55.0]
[1688178215910,107.73,18.445,18.43,113.011]
[1688178216216,22.933,18.445,18.431,10.83719922]
[1688178216426,22.933,18.445,18.436,22.943]
[1688178216922,22.933,18.445,18.437,77.942]
[1688178217103,22.933,18.445,18.435,22.944]
[1688178217305,22.933,18.445,18.436,55.0]
[1688178217503,22.933,18.445,18.436,77.944]
[1688178221019,22.933,18.445,18.436,55.0]
[1688178221928,22.933,18.445,18.436,77.944]
[1688178224926,22.933,18.445,18.436,22.944]
[1688178225222,22.933,18.445,18.438,22.941]
[1688178225427,22.933,18.445,18.439,55.0]
[1688178229922,59.018,18.452,18.439,77.939]